[Event "*** Titled Tuesday Blitz"]
[Site "Chess.com"]
[Date "2020.12.01"]
[Round "5"]
[White "Iskusnyh"]
[Black "Rital44"]
[Result "1/2-1/2"]
[WhiteElo "2617"]
[BlackElo "2457"]
[TimeControl "180+1"]
[EndTime "10:54:57 PST"]
[Termination "Game drawn by repetition"]

1. d4 {[%clk 0:03:00.9]} 1... Nf6 {[%clk 0:02:58.4]} 2. c4 {[%clk 0:03:01.4]}
2... g6 {[%clk 0:02:58.6]} 3. g3 {[%clk 0:03:01.4]} 3... Bg7 {[%clk 0:02:59]} 4.
Bg2 {[%clk 0:03:02]} 4... O-O {[%clk 0:02:59.6]} 5. Nc3 {[%clk 0:03:02.3]} 5...
d6 {[%clk 0:03:00.5]} 6. Nf3 {[%clk 0:03:02.6]} 6... Nc6 {[%clk 0:03:00.7]} 7.
O-O {[%clk 0:03:02.8]} 7... e5 {[%clk 0:03:01.3]} 8. dxe5 {[%clk 0:03:02.7]}
8... Nxe5 {[%clk 0:02:59]} 9. b3 {[%clk 0:03:01.5]} 9... Nxf3+ {[%clk
0:02:49.3]} 10. Bxf3 {[%clk 0:03:00.2]} 10... Ne4 {[%clk 0:02:49.8]} 11. Nxe4
{[%clk 0:02:52.7]} 11... Bxa1 {[%clk 0:02:50.7]} 12. Bg5 {[%clk 0:02:51.9]}
12... f6 {[%clk 0:02:50.6]} 13. Bh6 {[%clk 0:02:46.1]} 13... Be5 {[%clk
0:02:50.2]} 14. Bxf8 {[%clk 0:02:40.2]} 14... Qxf8 {[%clk 0:02:51.1]} 15. Qd2
{[%clk 0:02:30.2]} 15... f5 {[%clk 0:02:41.6]} 16. Ng5 {[%clk 0:02:11.8]} 16...
c6 {[%clk 0:02:40.8]} 17. Bg2 {[%clk 0:02:04.5]} 17... Qf6 {[%clk 0:02:39.3]}
18. Rd1 {[%clk 0:01:28.1]} 18... Bc3 {[%clk 0:02:17.4]} 19. Qd3 {[%clk
0:00:59.8]} 19... a5 {[%clk 0:02:10]} 20. h4 {[%clk 0:00:55.4]} 20... Bb4 {[%clk
0:02:00.2]} 21. e3 {[%clk 0:00:41.3]} 21... h6 {[%clk 0:01:52.6]} 22. Nf3 {[%clk
0:00:39.7]} 22... Be6 {[%clk 0:01:51.9]} 23. Nd4 {[%clk 0:00:38.9]} 23... Bf7
{[%clk 0:01:51.7]} 24. h5 {[%clk 0:00:38.3]} 24... a4 {[%clk 0:01:46.8]} 25.
hxg6 {[%clk 0:00:37.2]} 25... Bxg6 {[%clk 0:01:47.7]} 26. Qe2 {[%clk 0:00:29.3]}
26... axb3 {[%clk 0:01:46]} 27. axb3 {[%clk 0:00:29.2]} 27... Bc5 {[%clk
0:01:41.6]} 28. Bf3 {[%clk 0:00:28.9]} 28... Kh8 {[%clk 0:01:25.7]} 29. Kg2
{[%clk 0:00:28.4]} 29... f4 {[%clk 0:01:22.2]} 30. gxf4 {[%clk 0:00:23.9]} 30...
Rg8 {[%clk 0:01:20.2]} 31. Kf1 {[%clk 0:00:23.9]} 31... Qh4 {[%clk 0:01:14.9]}
32. Qb2 {[%clk 0:00:23.7]} 32... Kh7 {[%clk 0:01:13.2]} 33. Ke2 {[%clk
0:00:22.4]} 33... Re8 {[%clk 0:01:11.3]} 34. b4 {[%clk 0:00:21]} 34... Bb6
{[%clk 0:01:04]} 35. c5 {[%clk 0:00:20.6]} 35... Bc7 {[%clk 0:00:58.9]} 36. cxd6
{[%clk 0:00:19.9]} 36... Bxd6 {[%clk 0:00:59.7]} 37. Nxc6 {[%clk 0:00:19.6]}
37... Qxf4 {[%clk 0:00:56.4]} 38. Qd4 {[%clk 0:00:15.7]} 38... Qxf3+ {[%clk
0:00:19]} 39. Kxf3 {[%clk 0:00:14.3]} 39... Bh5+ {[%clk 0:00:19.9]} 40. Kg2
{[%clk 0:00:13.7]} 40... Rg8+ {[%clk 0:00:20.8]} 41. Kf1 {[%clk 0:00:13.3]}
41... Bh2 {[%clk 0:00:20]} 42. Qe4+ {[%clk 0:00:12.9]} 42... Kh8 {[%clk
0:00:18.1]} 43. Qd4+ {[%clk 0:00:10.9]} 43... Kh7 {[%clk 0:00:17.4]} 44. Qd7+
{[%clk 0:00:10.4]} 44... Kh8 {[%clk 0:00:16.9]} 45. Qd4+ {[%clk 0:00:09.8]}
45... Kh7 {[%clk 0:00:16.9]} 1/2-1/2

[Event "*** Titled Tuesday Blitz"]
[Site "Chess.com"]
[Date "2020.12.01"]
[Round "5"]
[White "AquivaRubinstein"]
[Black "Grammnik"]
[Result "0-1"]
[WhiteElo "2482"]
[BlackElo "2353"]
[TimeControl "180+1"]
[EndTime "10:54:59 PST"]
[Termination "Grammnik won by resignation"]

1. e4 {[%clk 0:03:00.9]} 1... e6 {[%clk 0:02:59.4]} 2. d4 {[%clk 0:03:00.2]}
2... d5 {[%clk 0:02:59]} 3. Nc3 {[%clk 0:02:59.6]} 3... Nf6 {[%clk 0:02:58]} 4.
e5 {[%clk 0:02:55.8]} 4... Nfd7 {[%clk 0:02:57.4]} 5. f4 {[%clk 0:02:55.7]} 5...
c5 {[%clk 0:02:57.5]} 6. Nf3 {[%clk 0:02:55.8]} 6... Nc6 {[%clk 0:02:57.8]} 7.
Be3 {[%clk 0:02:56]} 7... Rb8 {[%clk 0:02:56.5]} 8. Qd2 {[%clk 0:02:44.7]} 8...
Qa5 {[%clk 0:02:55.4]} 9. Be2 {[%clk 0:02:31]} 9... b5 {[%clk 0:02:52.3]} 10.
O-O {[%clk 0:02:27.2]} 10... b4 {[%clk 0:02:51.6]} 11. Nd1 {[%clk 0:02:26.6]}
11... Ba6 {[%clk 0:02:48.1]} 12. Nf2 {[%clk 0:02:16.9]} 12... Be7 {[%clk
0:02:46.5]} 13. Kh1 {[%clk 0:02:02.1]} 13... O-O {[%clk 0:02:44.5]} 14. g4
{[%clk 0:01:50.4]} 14... f6 {[%clk 0:02:36.5]} 15. c3 {[%clk 0:01:39.8]} 15...
bxc3 {[%clk 0:02:29.8]} 16. bxc3 {[%clk 0:01:36.9]} 16... Bxe2 {[%clk
0:02:20.5]} 17. Qxe2 {[%clk 0:01:32.5]} 17... Qb5 {[%clk 0:02:19.1]} 18. Qc2
{[%clk 0:00:59.4]} 18... fxe5 {[%clk 0:02:17.3]} 19. Nxe5 {[%clk 0:00:56.2]}
19... Ndxe5 {[%clk 0:02:12.9]} 20. fxe5 {[%clk 0:00:53]} 20... Rf3 {[%clk
0:02:09.5]} 21. Rfb1 {[%clk 0:00:49.9]} 21... Qc4 {[%clk 0:02:00.9]} 22. Rxb8+
{[%clk 0:00:49.6]} 22... Nxb8 {[%clk 0:02:00.6]} 23. Rb1 {[%clk 0:00:46.9]}
23... Nc6 {[%clk 0:01:57.9]} 24. Qd2 {[%clk 0:00:46.7]} 24... Bh4 {[%clk
0:01:35.9]} 25. Kg2 {[%clk 0:00:43.3]} 25... Rf7 {[%clk 0:01:30.9]} 26. Nh3
{[%clk 0:00:43]} 26... h6 {[%clk 0:01:19.7]} 27. Nf4 {[%clk 0:00:41.5]} 27...
Bg5 {[%clk 0:00:44.7]} 28. Nxe6 {[%clk 0:00:37.9]} 28... Bxe3 {[%clk 0:00:44.1]}
29. Qxe3 {[%clk 0:00:38.8]} 29... Qxa2+ {[%clk 0:00:44.1]} 30. Kh3 {[%clk
0:00:32]} 30... Qxb1 {[%clk 0:00:43.3]} 31. Nf4 {[%clk 0:00:23.8]} 31... Qf1+
{[%clk 0:00:40.6]} 32. Kg3 {[%clk 0:00:23.6]} 32... g5 {[%clk 0:00:40.4]} 33.
Nxd5 {[%clk 0:00:20.6]} 33... cxd4 {[%clk 0:00:39.3]} 34. cxd4 {[%clk
0:00:20.6]} 34... Nxd4 {[%clk 0:00:35.6]} 35. Nf6+ {[%clk 0:00:19.3]} 35... Rxf6
{[%clk 0:00:35.7]} 36. exf6 {[%clk 0:00:19.4]} 36... Qxf6 {[%clk 0:00:34.8]} 37.
Qe8+ {[%clk 0:00:18.8]} 37... Kg7 {[%clk 0:00:33.8]} 38. Qd7+ {[%clk 0:00:18.9]}
38... Kg6 {[%clk 0:00:32.5]} 39. Qe8+ {[%clk 0:00:18.9]} 39... Kg7 {[%clk
0:00:27.2]} 40. Qd7+ {[%clk 0:00:19]} 40... Kf8 {[%clk 0:00:26]} 41. Qc8+ {[%clk
0:00:18.1]} 41... Ke7 {[%clk 0:00:25.5]} 42. Qc7+ {[%clk 0:00:18.1]} 42... Ke6
{[%clk 0:00:25.3]} 43. Qc8+ {[%clk 0:00:17.2]} 43... Ke5 {[%clk 0:00:24.9]} 44.
Qc5+ {[%clk 0:00:16.6]} 44... Ke4 {[%clk 0:00:24.5]} 45. Qa3 {[%clk 0:00:11.5]}
45... Qf3+ {[%clk 0:00:23]} 46. Qxf3+ {[%clk 0:00:10.9]} 46... Nxf3 {[%clk
0:00:23.9]} 47. h3 {[%clk 0:00:10.3]} 47... a5 {[%clk 0:00:23.5]} 48. Kf2 {[%clk
0:00:10.8]} 48... a4 {[%clk 0:00:23.8]} 49. Ke2 {[%clk 0:00:11.4]} 49... a3
{[%clk 0:00:24.3]} 0-1

[Event "*** Titled Tuesday Blitz"]
[Site "Chess.com"]
[Date "2020.12.01"]
[Round "5"]
[White "tvjosue"]
[Black "ozates"]
[Result "1-0"]
[WhiteElo "2573"]
[BlackElo "2391"]
[TimeControl "180+1"]
[EndTime "10:55:03 PST"]
[Termination "tvjosue won on time"]

1. e4 {[%clk 0:02:59]} 1... d6 {[%clk 0:02:56.7]} 2. d4 {[%clk 0:02:57.2]} 2...
Nf6 {[%clk 0:02:57.6]} 3. Nc3 {[%clk 0:02:57.3]} 3... e5 {[%clk 0:02:58.2]} 4.
Nf3 {[%clk 0:02:17.2]} 4... exd4 {[%clk 0:02:56.3]} 5. Nxd4 {[%clk 0:02:17.6]}
5... Be7 {[%clk 0:02:57.1]} 6. Be2 {[%clk 0:02:16.5]} 6... O-O {[%clk
0:02:57.7]} 7. O-O {[%clk 0:02:16.6]} 7... Nbd7 {[%clk 0:02:56.2]} 8. Re1 {[%clk
0:02:14.6]} 8... Nb6 {[%clk 0:02:56.7]} 9. a4 {[%clk 0:02:12.9]} 9... a5 {[%clk
0:02:56.6]} 10. Bf4 {[%clk 0:02:08]} 10... Re8 {[%clk 0:02:55.8]} 11. Bf1 {[%clk
0:02:05.8]} 11... Bf8 {[%clk 0:02:56.1]} 12. Qd2 {[%clk 0:02:05.1]} 12... Nfd7
{[%clk 0:02:55.4]} 13. Rad1 {[%clk 0:02:02.1]} 13... Ne5 {[%clk 0:02:51.1]} 14.
b3 {[%clk 0:02:01.2]} 14... h6 {[%clk 0:02:47]} 15. Ndb5 {[%clk 0:01:58.2]}
15... Bg4 {[%clk 0:02:36.3]} 16. Be2 {[%clk 0:01:55.6]} 16... Bxe2 {[%clk
0:02:32.1]} 17. Rxe2 {[%clk 0:01:56.5]} 17... Rc8 {[%clk 0:02:26.4]} 18. Be3
{[%clk 0:01:53.7]} 18... Nbd7 {[%clk 0:02:17.3]} 19. f3 {[%clk 0:01:46.9]} 19...
Qf6 {[%clk 0:01:36.6]} 20. Nd5 {[%clk 0:01:30.1]} 20... Qg6 {[%clk 0:01:35.9]}
21. Kh1 {[%clk 0:01:29.7]} 21... c6 {[%clk 0:01:35.5]} 22. Nf4 {[%clk
0:01:28.3]} 22... Qf6 {[%clk 0:01:26.3]} 23. Nxd6 {[%clk 0:01:27.6]} 23... Bxd6
{[%clk 0:01:25.5]} 24. Qxd6 {[%clk 0:01:27.9]} 24... Qh4 {[%clk 0:01:23.7]} 25.
Red2 {[%clk 0:01:20]} 25... Nf6 {[%clk 0:01:18.8]} 26. Ne2 {[%clk 0:01:08.5]}
26... Re6 {[%clk 0:00:57.2]} 27. Qc5 {[%clk 0:01:03.8]} 27... Neg4 {[%clk
0:00:23.2]} 28. Bg1 {[%clk 0:00:55.8]} 28... Re5 {[%clk 0:00:20.5]} 29. Qc3
{[%clk 0:00:30.4]} 29... Rxe4 {[%clk 0:00:20.4]} 30. fxg4 {[%clk 0:00:26.1]}
30... Nxg4 {[%clk 0:00:15.9]} 31. Qg3 {[%clk 0:00:25.4]} 31... Qh5 {[%clk
0:00:14.9]} 32. h3 {[%clk 0:00:20.8]} 32... Nf6 {[%clk 0:00:12.2]} 33. Nc3
{[%clk 0:00:18.3]} 33... Re5 {[%clk 0:00:11.4]} 34. Rd8+ {[%clk 0:00:15.9]}
34... Rxd8 {[%clk 0:00:11.6]} 35. Rxd8+ {[%clk 0:00:16.8]} 35... Kh7 {[%clk
0:00:12.5]} 36. Qd3+ {[%clk 0:00:16.9]} 36... g6 {[%clk 0:00:10.8]} 37. Bd4
{[%clk 0:00:17.1]} 37... Re1+ {[%clk 0:00:10.3]} 38. Kh2 {[%clk 0:00:17.2]}
38... Ng4+ {[%clk 0:00:10.5]} 39. Kg3 {[%clk 0:00:15.8]} 39... Ne5 {[%clk
0:00:05.3]} 40. Qd2 {[%clk 0:00:08.2]} 40... Re4 {[%clk 0:00:02.4]} 41. Nxe4
{[%clk 0:00:07.3]} 1-0

[Event "*** Titled Tuesday Blitz"]
[Site "Chess.com"]
[Date "2020.12.01"]
[Round "5"]
[White "IMTominho"]
[Black "Kovalchuk94"]
[Result "1-0"]
[WhiteElo "2757"]
[BlackElo "2558"]
[TimeControl "180+1"]
[EndTime "10:55:04 PST"]
[Termination "IMTominho won on time"]

1. d4 {[%clk 0:03:00.9]} 1... d5 {[%clk 0:02:59.9]} 2. c4 {[%clk 0:03:00.9]}
2... e6 {[%clk 0:03:00.1]} 3. Nf3 {[%clk 0:03:00.5]} 3... Nf6 {[%clk 0:02:59.4]}
4. Nc3 {[%clk 0:03:00.1]} 4... Be7 {[%clk 0:02:51.1]} 5. Bf4 {[%clk 0:02:59.7]}
5... O-O {[%clk 0:02:47.9]} 6. e3 {[%clk 0:02:59.5]} 6... b6 {[%clk 0:02:48]} 7.
a3 {[%clk 0:02:59.3]} 7... Bb7 {[%clk 0:02:36.8]} 8. Rc1 {[%clk 0:02:57.6]} 8...
c5 {[%clk 0:02:33.3]} 9. dxc5 {[%clk 0:02:52.3]} 9... Bxc5 {[%clk 0:02:21.1]}
10. Be2 {[%clk 0:02:32.3]} 10... dxc4 {[%clk 0:02:06.8]} 11. O-O {[%clk
0:02:14.2]} 11... Nc6 {[%clk 0:02:03.9]} 12. Bxc4 {[%clk 0:02:11.8]} 12... Qxd1
{[%clk 0:01:53.3]} 13. Rfxd1 {[%clk 0:02:12.7]} 13... Rfd8 {[%clk 0:01:53.6]}
14. Nb5 {[%clk 0:01:55.7]} 14... Ne4 {[%clk 0:01:03.1]} 15. Bd3 {[%clk
0:01:36.7]} 15... Nf6 {[%clk 0:00:43.2]} 16. h3 {[%clk 0:01:18.3]} 16... h6
{[%clk 0:00:41]} 17. Be2 {[%clk 0:00:55.3]} 17... Nd5 {[%clk 0:00:40.8]} 18. Bg3
{[%clk 0:00:53.7]} 18... a6 {[%clk 0:00:40.4]} 19. Nbd4 {[%clk 0:00:47.1]} 19...
Nxd4 {[%clk 0:00:39.7]} 20. Nxd4 {[%clk 0:00:48]} 20... Rac8 {[%clk 0:00:35.5]}
21. Bf3 {[%clk 0:00:47.5]} 21... b5 {[%clk 0:00:31.2]} 22. Nb3 {[%clk
0:00:41.6]} 22... Bb6 {[%clk 0:00:29.5]} 23. Be5 {[%clk 0:00:39.7]} 23... Rxc1
{[%clk 0:00:25.7]} 24. Rxc1 {[%clk 0:00:38.9]} 24... Rc8 {[%clk 0:00:26.2]} 25.
Rxc8+ {[%clk 0:00:38.1]} 25... Bxc8 {[%clk 0:00:27.1]} 26. Bxd5 {[%clk
0:00:34.3]} 26... exd5 {[%clk 0:00:26.1]} 27. Bd4 {[%clk 0:00:35.2]} 27... Bc7
{[%clk 0:00:25.8]} 28. Kf1 {[%clk 0:00:34.1]} 28... f5 {[%clk 0:00:18.7]} 29.
Ke2 {[%clk 0:00:32.5]} 29... Kf7 {[%clk 0:00:18.5]} 30. Kd3 {[%clk 0:00:32.3]}
30... g5 {[%clk 0:00:18.7]} 31. Bc3 {[%clk 0:00:28]} 31... Bd6 {[%clk
0:00:15.8]} 32. Kd4 {[%clk 0:00:25.3]} 32... Ke6 {[%clk 0:00:15.7]} 33. Bb4
{[%clk 0:00:25.1]} 33... Be5+ {[%clk 0:00:15.3]} 34. Kd3 {[%clk 0:00:25.1]}
34... Bxb2 {[%clk 0:00:14.9]} 35. Nc5+ {[%clk 0:00:23.3]} 35... Kf7 {[%clk
0:00:15]} 36. a4 {[%clk 0:00:20.3]} 36... bxa4 {[%clk 0:00:11.6]} 37. Nxa4
{[%clk 0:00:21.2]} 37... Be5 {[%clk 0:00:11.4]} 38. Nb6 {[%clk 0:00:19.3]} 38...
Bb7 {[%clk 0:00:11.6]} 39. Nd7 {[%clk 0:00:17.9]} 39... Bc7 {[%clk 0:00:10]} 40.
Kd4 {[%clk 0:00:15.8]} 40... Bc6 {[%clk 0:00:08.2]} 41. Ne5+ {[%clk 0:00:11.8]}
41... Ke6 {[%clk 0:00:08.3]} 42. Nxc6 {[%clk 0:00:11.6]} 1-0

[Event "*** Titled Tuesday Blitz"]
[Site "Chess.com"]
[Date "2020.12.01"]
[Round "5"]
[White "Chessbard1972"]
[Black "redbaron8888"]
[Result "0-1"]
[WhiteElo "2381"]
[BlackElo "2556"]
[TimeControl "180+1"]
[EndTime "10:55:04 PST"]
[Termination "redbaron8888 won on time"]

1. e4 {[%clk 0:03:00.8]} 1... c5 {[%clk 0:02:59.4]} 2. Nc3 {[%clk 0:02:58.7]}
2... a6 {[%clk 0:02:57.7]} 3. a4 {[%clk 0:02:57.8]} 3... e6 {[%clk 0:02:57.1]}
4. f4 {[%clk 0:02:56.7]} 4... d5 {[%clk 0:02:52.2]} 5. Nf3 {[%clk 0:02:54.1]}
5... Nf6 {[%clk 0:02:48.6]} 6. e5 {[%clk 0:02:51.4]} 6... Nfd7 {[%clk
0:02:37.6]} 7. d4 {[%clk 0:02:50]} 7... Nc6 {[%clk 0:02:37.2]} 8. Be3 {[%clk
0:02:49.1]} 8... Qb6 {[%clk 0:02:35]} 9. Qd2 {[%clk 0:02:46.7]} 9... cxd4 {[%clk
0:02:29.7]} 10. Nxd4 {[%clk 0:02:45.1]} 10... Bc5 {[%clk 0:02:29]} 11. O-O-O
{[%clk 0:02:39.8]} 11... O-O {[%clk 0:02:20.5]} 12. Be2 {[%clk 0:02:29.6]} 12...
f6 {[%clk 0:02:12.4]} 13. exf6 {[%clk 0:02:26.4]} 13... Nxf6 {[%clk 0:02:12.3]}
14. Bf3 {[%clk 0:02:18.7]} 14... Bd7 {[%clk 0:02:06.3]} 15. Rhe1 {[%clk
0:02:15.8]} 15... Rac8 {[%clk 0:02:04]} 16. Nb3 {[%clk 0:02:01.1]} 16... Bxe3
{[%clk 0:01:59.7]} 17. Qxe3 {[%clk 0:01:58.7]} 17... Qxe3+ {[%clk 0:01:47.2]}
18. Rxe3 {[%clk 0:01:57.9]} 18... g6 {[%clk 0:01:40.6]} 19. g3 {[%clk
0:01:54.6]} 19... Kg7 {[%clk 0:01:38.7]} 20. Nc5 {[%clk 0:01:53.4]} 20... d4
{[%clk 0:01:29.4]} 21. Nxd7 {[%clk 0:01:52.7]} 21... Nxd7 {[%clk 0:01:28.5]} 22.
Bxc6 {[%clk 0:01:36.8]} 22... dxe3 {[%clk 0:01:25.6]} 23. Bxd7 {[%clk
0:01:29.8]} 23... Rc7 {[%clk 0:01:25.2]} 24. Bxe6 {[%clk 0:01:28.9]} 24... Re8
{[%clk 0:01:24.3]} 25. Bg4 {[%clk 0:01:27.8]} 25... h5 {[%clk 0:01:20.6]} 26.
Be2 {[%clk 0:01:27]} 26... Rec8 {[%clk 0:01:17.6]} 27. Rd3 {[%clk 0:01:25.5]}
27... b5 {[%clk 0:01:17.4]} 28. axb5 {[%clk 0:01:22]} 28... axb5 {[%clk
0:01:18.3]} 29. Bd1 {[%clk 0:01:07.4]} 29... b4 {[%clk 0:01:15.2]} 30. Nd5
{[%clk 0:01:05.6]} 30... e2 {[%clk 0:01:14.9]} 31. Bxe2 {[%clk 0:01:02.4]} 31...
Rxc2+ {[%clk 0:01:13.7]} 32. Kd1 {[%clk 0:01:02.6]} 32... Rc1+ {[%clk
0:01:04.3]} 33. Kd2 {[%clk 0:01:02.2]} 33... R8c2+ {[%clk 0:01:04.9]} 34. Ke3
{[%clk 0:01:00.8]} 34... Rxb2 {[%clk 0:01:00.4]} 35. f5 {[%clk 0:00:53]} 35...
gxf5 {[%clk 0:00:58.9]} 36. Nf4 {[%clk 0:00:52.2]} 36... b3 {[%clk 0:00:52.6]}
37. Rd7+ {[%clk 0:00:46.6]} 37... Kf6 {[%clk 0:00:51.1]} 38. h4 {[%clk
0:00:35.1]} 38... Rbc2 {[%clk 0:00:42.1]} 39. Bxh5 {[%clk 0:00:22.7]} 39... Rc3+
{[%clk 0:00:34.3]} 40. Nd3 {[%clk 0:00:19.9]} 40... b2 {[%clk 0:00:29.4]} 41.
Rf7+ {[%clk 0:00:19.5]} 41... Ke6 {[%clk 0:00:29]} 42. Rb7 {[%clk 0:00:06.8]}
42... b1=Q {[%clk 0:00:27.6]} 43. Bf7+ {[%clk 0:00:06]} 43... Kf6 {[%clk
0:00:23.7]} 44. Rxb1 {[%clk 0:00:02.9]} 44... Rxb1 {[%clk 0:00:24.6]} 45. Kd4
{[%clk 0:00:01.4]} 45... Rxd3+ {[%clk 0:00:24]} 46. Kxd3 {[%clk 0:00:01.5]}
46... Kxf7 {[%clk 0:00:24]} 47. Ke3 {[%clk 0:00:01.6]} 47... Kf6 {[%clk
0:00:22.7]} 0-1

[Event "*** Titled Tuesday Blitz"]
[Site "Chess.com"]
[Date "2020.12.01"]
[Round "5"]
[White "Marianov_Podstavnikov"]
[Black "Stormeman100100"]
[Result "1-0"]
[WhiteElo "2268"]
[BlackElo "2488"]
[TimeControl "180+1"]
[EndTime "10:55:08 PST"]
[Termination "Marianov_Podstavnikov won on time"]

1. e4 {[%clk 0:02:58.1]} 1... c5 {[%clk 0:02:59.1]} 2. Nf3 {[%clk 0:02:58.2]}
2... d6 {[%clk 0:02:58.1]} 3. Bb5+ {[%clk 0:02:58.1]} 3... Nd7 {[%clk
0:02:55.7]} 4. d4 {[%clk 0:02:57.2]} 4... cxd4 {[%clk 0:02:55.2]} 5. Qxd4 {[%clk
0:02:58.1]} 5... a6 {[%clk 0:02:54]} 6. Bxd7+ {[%clk 0:02:56.8]} 6... Bxd7
{[%clk 0:02:54.9]} 7. O-O {[%clk 0:02:56.7]} 7... e5 {[%clk 0:02:47]} 8. Qd3
{[%clk 0:02:56.4]} 8... h6 {[%clk 0:02:45.1]} 9. c4 {[%clk 0:02:56.3]} 9... Nf6
{[%clk 0:02:44.2]} 10. Nc3 {[%clk 0:02:36.5]} 10... Be7 {[%clk 0:02:38.8]} 11.
Rd1 {[%clk 0:02:26.3]} 11... Rc8 {[%clk 0:02:30.6]} 12. b3 {[%clk 0:02:24]}
12... Qa5 {[%clk 0:02:20]} 13. Bd2 {[%clk 0:02:12.1]} 13... Qc7 {[%clk
0:02:14.2]} 14. a4 {[%clk 0:02:11]} 14... O-O {[%clk 0:02:13.4]} 15. Bc1 {[%clk
0:02:04]} 15... Be6 {[%clk 0:02:12.3]} 16. Ba3 {[%clk 0:02:00.9]} 16... Rfd8
{[%clk 0:02:11.6]} 17. Rac1 {[%clk 0:01:58.7]} 17... Qb6 {[%clk 0:01:41.8]} 18.
Rb1 {[%clk 0:01:43.4]} 18... Nd7 {[%clk 0:01:35.3]} 19. Nd5 {[%clk 0:01:19.2]}
19... Bxd5 {[%clk 0:01:32.2]} 20. Qxd5 {[%clk 0:01:18.7]} 20... Nc5 {[%clk
0:01:28.3]} 21. Bc1 {[%clk 0:01:05]} 21... Qc6 {[%clk 0:01:19.1]} 22. Nd2 {[%clk
0:00:52.1]} 22... Qxd5 {[%clk 0:01:17.1]} 23. cxd5 {[%clk 0:00:50.4]} 23... b5
{[%clk 0:01:12.1]} 24. axb5 {[%clk 0:00:48.7]} 24... axb5 {[%clk 0:01:09]} 25.
f3 {[%clk 0:00:44.5]} 25... Bg5 {[%clk 0:00:57.1]} 26. Nf1 {[%clk 0:00:43]}
26... Bxc1 {[%clk 0:00:54.7]} 27. Rdxc1 {[%clk 0:00:43.1]} 27... Nd3 {[%clk
0:00:54.5]} 28. Rxc8 {[%clk 0:00:39.4]} 28... Rxc8 {[%clk 0:00:54]} 29. Ne3
{[%clk 0:00:39.9]} 29... Rc3 {[%clk 0:00:26.4]} 30. Nf5 {[%clk 0:00:37.9]} 30...
Rc2 {[%clk 0:00:16.4]} 31. g3 {[%clk 0:00:32.7]} 31... Nc1 {[%clk 0:00:12.7]}
32. Nxd6 {[%clk 0:00:29.1]} 32... Ne2+ {[%clk 0:00:12]} 33. Kh1 {[%clk
0:00:26.9]} 33... Nd4 {[%clk 0:00:12]} 34. Rf1 {[%clk 0:00:18.4]} 34... b4
{[%clk 0:00:12.1]} 35. f4 {[%clk 0:00:17.1]} 35... exf4 {[%clk 0:00:09.2]} 36.
gxf4 {[%clk 0:00:16.4]} 36... Nxb3 {[%clk 0:00:09.1]} 37. e5 {[%clk 0:00:15.3]}
37... Nd4 {[%clk 0:00:08.8]} 38. f5 {[%clk 0:00:13.1]} 38... b3 {[%clk
0:00:07.9]} 39. e6 {[%clk 0:00:12.7]} 39... Re2 {[%clk 0:00:05.8]} 40. exf7+
{[%clk 0:00:08.8]} 40... Kf8 {[%clk 0:00:06.1]} 41. Rc1 {[%clk 0:00:08.4]} 41...
Ke7 {[%clk 0:00:03]} 42. Rc8 {[%clk 0:00:07.4]} 1-0

[Event "*** Titled Tuesday Blitz"]
[Site "Chess.com"]
[Date "2020.12.01"]
[Round "5"]
[White "Arseniy_Nesterov"]
[Black "Nikolakis2014"]
[Result "1/2-1/2"]
[WhiteElo "2848"]
[BlackElo "2716"]
[TimeControl "180+1"]
[EndTime "10:55:11 PST"]
[Termination "Game drawn by repetition"]

1. d4 {[%clk 0:03:00.9]} 1... Nf6 {[%clk 0:02:59.4]} 2. c4 {[%clk 0:03:01.1]}
2... g6 {[%clk 0:02:59.7]} 3. Nc3 {[%clk 0:03:01.3]} 3... Bg7 {[%clk 0:03:00]}
4. e4 {[%clk 0:03:01.7]} 4... d6 {[%clk 0:03:00.2]} 5. Be2 {[%clk 0:03:02]} 5...
O-O {[%clk 0:03:00.1]} 6. Be3 {[%clk 0:03:02.5]} 6... Nc6 {[%clk 0:02:57.7]} 7.
d5 {[%clk 0:02:59.1]} 7... Ne5 {[%clk 0:02:56.4]} 8. Nf3 {[%clk 0:02:58.9]} 8...
Nfg4 {[%clk 0:02:49.5]} 9. Bd2 {[%clk 0:02:55.4]} 9... Nxf3+ {[%clk 0:02:49]}
10. Bxf3 {[%clk 0:02:55.5]} 10... Ne5 {[%clk 0:02:49]} 11. Be2 {[%clk
0:02:55.8]} 11... e6 {[%clk 0:02:49.3]} 12. O-O {[%clk 0:02:54]} 12... exd5
{[%clk 0:02:44.7]} 13. cxd5 {[%clk 0:02:53.7]} 13... Re8 {[%clk 0:02:45]} 14.
Rc1 {[%clk 0:02:51.2]} 14... a6 {[%clk 0:02:45.1]} 15. h3 {[%clk 0:02:38.7]}
15... Nd7 {[%clk 0:02:42.7]} 16. Be3 {[%clk 0:02:35.6]} 16... Nc5 {[%clk
0:02:34.8]} 17. Bf3 {[%clk 0:02:33.7]} 17... f5 {[%clk 0:02:31]} 18. exf5 {[%clk
0:02:27.8]} 18... Bxf5 {[%clk 0:02:30.4]} 19. Bxc5 {[%clk 0:02:05.3]} 19... dxc5
{[%clk 0:02:28.6]} 20. Qb3 {[%clk 0:02:05.6]} 20... b5 {[%clk 0:02:17.9]} 21.
d6+ {[%clk 0:01:05.2]} 21... c4 {[%clk 0:02:17.3]} 22. dxc7 {[%clk 0:01:04.9]}
22... Qxc7 {[%clk 0:02:11.2]} 23. Nxb5 {[%clk 0:00:52.8]} 23... axb5 {[%clk
0:01:55.6]} 24. Bxa8 {[%clk 0:00:52.3]} 24... Rxa8 {[%clk 0:01:24.7]} 25. Qxb5
{[%clk 0:00:51.4]} 25... Rc8 {[%clk 0:01:23.3]} 26. Rfe1 {[%clk 0:00:50.4]}
26... h5 {[%clk 0:01:16.3]} 27. Re8+ {[%clk 0:00:48.6]} 27... Rxe8 {[%clk
0:01:14.1]} 28. Qxe8+ {[%clk 0:00:49.5]} 28... Kh7 {[%clk 0:01:14.4]} 29. Qb5
{[%clk 0:00:48.6]} 29... Bd3 {[%clk 0:01:12.4]} 30. b3 {[%clk 0:00:40.3]} 30...
Qf4 {[%clk 0:01:01.2]} 31. Rxc4 {[%clk 0:00:33.4]} 31... Bxc4 {[%clk 0:00:53.1]}
32. Qxc4 {[%clk 0:00:33.5]} 32... Bd4 {[%clk 0:00:53]} 33. Qc2 {[%clk
0:00:31.9]} 33... Kh6 {[%clk 0:00:50.8]} 34. b4 {[%clk 0:00:29.8]} 34... Bb6
{[%clk 0:00:44.8]} 35. a3 {[%clk 0:00:29.4]} 35... Qd4 {[%clk 0:00:44.9]} 36.
Qa2 {[%clk 0:00:23.5]} 36... Qd1+ {[%clk 0:00:41.1]} 37. Kh2 {[%clk 0:00:23.6]}
37... Qd4 {[%clk 0:00:39]} 38. Kg1 {[%clk 0:00:21.1]} 38... Kg7 {[%clk
0:00:27.1]} 39. g3 {[%clk 0:00:17.4]} 39... Qd3 {[%clk 0:00:23.6]} 40. Kg2
{[%clk 0:00:16.6]} 40... Qe4+ {[%clk 0:00:23.6]} 41. Kf1 {[%clk 0:00:11.7]}
41... Qh1+ {[%clk 0:00:19]} 42. Ke2 {[%clk 0:00:11.8]} 42... Qxh3 {[%clk
0:00:19.6]} 43. Qd5 {[%clk 0:00:11.5]} 43... Qg4+ {[%clk 0:00:18]} 44. Kf1
{[%clk 0:00:11]} 44... Qd4 {[%clk 0:00:15.6]} 45. Qf3 {[%clk 0:00:09.6]} 45...
Qa1+ {[%clk 0:00:14.4]} 46. Kg2 {[%clk 0:00:09.9]} 46... Qd4 {[%clk 0:00:15]}
47. Kf1 {[%clk 0:00:09.4]} 47... Kh6 {[%clk 0:00:15.1]} 48. Kg2 {[%clk
0:00:09.8]} 48... Kg7 {[%clk 0:00:14]} 49. Kf1 {[%clk 0:00:09.4]} 1/2-1/2